[Event "Early-Titled-Tuesday-Blitz-February-06-2024"]
[Site "Chess.com"]
[Date "2024.02.06"]
[Round "5"]
[White "Hasangatin_Ramil"]
[Black "jcibarra"]
[Result "0-1"]
[WhiteElo "2666"]
[BlackElo "2878"]
[TimeControl "180+1"]
[EndTime "8:56:55 PST"]
[Termination "jcibarra won on time"]

1. e4 {[%clk 0:02:56.8]} 1... Nc6 {[%clk 0:02:57.5]} 2. Nf3 {[%clk 0:02:57.2]}
2... d6 {[%clk 0:02:55.7]} 3. d4 {[%clk 0:02:56.9]} 3... Nf6 {[%clk 0:02:56.2]}
4. d5 {[%clk 0:02:57]} 4... Nb8 {[%clk 0:02:55.4]} 5. Nc3 {[%clk 0:02:57.4]}
5... g6 {[%clk 0:02:55.6]} 6. Bc4 {[%clk 0:02:55.8]} 6... Bg7 {[%clk 0:02:55.6]}
7. h3 {[%clk 0:02:56.3]} 7... O-O {[%clk 0:02:56.1]} 8. O-O {[%clk 0:02:56.8]}
8... e5 {[%clk 0:02:54.6]} 9. dxe6 {[%clk 0:02:54.2]} 9... Bxe6 {[%clk 0:02:55]}
10. Bxe6 {[%clk 0:02:53.8]} 10... fxe6 {[%clk 0:02:55.9]} 11. e5 {[%clk
0:02:54.3]} 11... dxe5 {[%clk 0:02:56.8]} 12. Qxd8 {[%clk 0:02:52.5]} 12... Rxd8
{[%clk 0:02:56.6]} 13. Nxe5 {[%clk 0:02:51.5]} 13... Nd5 {[%clk 0:02:56.9]} 14.
Nxd5 {[%clk 0:02:51.5]} 14... exd5 {[%clk 0:02:56.3]} 15. Bf4 {[%clk 0:02:48.6]}
15... Nd7 {[%clk 0:02:48.8]} 16. Rfe1 {[%clk 0:02:48.4]} 16... c6 {[%clk
0:02:44.9]} 17. Nxd7 {[%clk 0:02:46.4]} 17... Rxd7 {[%clk 0:02:44.7]} 18. Be5
{[%clk 0:02:47]} 18... Bf8 {[%clk 0:02:37]} 19. c3 {[%clk 0:02:42.3]} 19... Re8
{[%clk 0:02:34.4]} 20. Kf1 {[%clk 0:02:35.9]} 20... Rde7 {[%clk 0:02:27]} 21.
Bd4 {[%clk 0:02:35.3]} 21... c5 {[%clk 0:02:19.1]} 22. Rxe7 {[%clk 0:02:32.1]}
22... Bxe7 {[%clk 0:02:20]} 23. Be3 {[%clk 0:02:31.2]} 23... Kf7 {[%clk
0:02:20.6]} 24. Rd1 {[%clk 0:02:28]} 24... Ke6 {[%clk 0:02:20.3]} 25. Ke2 {[%clk
0:02:28.1]} 25... b5 {[%clk 0:01:56.8]} 26. a4 {[%clk 0:02:24.7]} 26... Rb8
{[%clk 0:01:30.1]} 27. axb5 {[%clk 0:02:17.7]} 27... Rxb5 {[%clk 0:01:31]} 28.
Bc1 {[%clk 0:02:18]} 28... c4 {[%clk 0:01:28.4]} 29. Kd2 {[%clk 0:02:15.5]}
29... Bc5 {[%clk 0:01:23.6]} 30. Re1+ {[%clk 0:02:14.7]} 30... Kd6 {[%clk
0:01:13.7]} 31. Re2 {[%clk 0:02:12.9]} 31... a5 {[%clk 0:00:56.2]} 32. Kc2
{[%clk 0:02:07.6]} 32... d4 {[%clk 0:00:54]} 33. Bf4+ {[%clk 0:02:04.9]} 33...
Kc6 {[%clk 0:00:54.2]} 34. cxd4 {[%clk 0:02:00.8]} 34... Bxd4 {[%clk 0:00:55.1]}
35. Bc1 {[%clk 0:02:00.8]} 35... Rb7 {[%clk 0:00:42.1]} 36. f4 {[%clk
0:01:58.2]} 36... Kd5 {[%clk 0:00:41.5]} 37. g4 {[%clk 0:01:57.4]} 37... a4
{[%clk 0:00:40.7]} 38. Re8 {[%clk 0:01:56.4]} 38... Rb3 {[%clk 0:00:38.5]} 39.
Rd8+ {[%clk 0:01:50.6]} 39... Ke4 {[%clk 0:00:38.4]} 40. Re8+ {[%clk 0:01:50.9]}
40... Kd5 {[%clk 0:00:25]} 41. Rd8+ {[%clk 0:01:51]} 41... Kc5 {[%clk 0:00:25]}
42. Rc8+ {[%clk 0:01:51.3]} 42... Kb5 {[%clk 0:00:23.7]} 43. Rb8+ {[%clk
0:01:46.6]} 43... Bb6 {[%clk 0:00:24.1]} 44. f5 {[%clk 0:01:45.9]} 44... gxf5
{[%clk 0:00:21.4]} 45. gxf5 {[%clk 0:01:46.8]} 45... Rxh3 {[%clk 0:00:20.5]} 46.
Bf4 {[%clk 0:01:40.8]} 46... Kc6 {[%clk 0:00:19.5]} 47. f6 {[%clk 0:01:40.4]}
47... Rf3 {[%clk 0:00:14.9]} 48. f7 {[%clk 0:01:27.2]} 48... Rxf4 {[%clk
0:00:15.3]} 49. f8=Q {[%clk 0:01:27.7]} 49... Rxf8 {[%clk 0:00:16]} 50. Rxf8
{[%clk 0:01:27.9]} 50... Bd4 {[%clk 0:00:11.1]} 51. Rf4 {[%clk 0:01:18.9]} 51...
Kd5 {[%clk 0:00:10.8]} 52. Rf5+ {[%clk 0:01:19.5]} 52... Be5 {[%clk 0:00:09.8]}
53. Rh5 {[%clk 0:01:20.1]} 53... Kd4 {[%clk 0:00:06.9]} 54. Rxh7 {[%clk
0:01:19.9]} 54... Kc5 {[%clk 0:00:07.6]} 55. Rh5 {[%clk 0:01:18.5]} 55... Kd4
{[%clk 0:00:07.3]} 56. Rh1 {[%clk 0:01:11.4]} 56... Kc5 {[%clk 0:00:07.2]} 57.
Re1 {[%clk 0:01:11.8]} 57... Bd4 {[%clk 0:00:07.1]} 58. Ra1 {[%clk 0:01:09.5]}
58... Kb4 {[%clk 0:00:07.2]} 59. Rd1 {[%clk 0:01:10.1]} 59... Be5 {[%clk
0:00:07]} 60. Rd5 {[%clk 0:01:09.7]} 60... Bf6 {[%clk 0:00:07.3]} 61. Rd6 {[%clk
0:01:06.8]} 61... Be5 {[%clk 0:00:07.1]} 62. Rb6+ {[%clk 0:01:06.7]} 62... Kc5
{[%clk 0:00:06.7]} 63. Rb7 {[%clk 0:01:07.1]} 63... Bd4 {[%clk 0:00:06.3]} 64.
Rf7 {[%clk 0:01:02.3]} 64... Be5 {[%clk 0:00:06.3]} 65. Rf5 {[%clk 0:01:01.4]}
65... Kd4 {[%clk 0:00:06.9]} 66. Rh5 {[%clk 0:00:55.8]} 66... Kd5 {[%clk
0:00:07.1]} 67. Rh3 {[%clk 0:00:56.4]} 67... Kc5 {[%clk 0:00:07]} 68. Rf3 {[%clk
0:00:53.8]} 68... Bd4 {[%clk 0:00:07]} 69. Rf5+ {[%clk 0:00:53.4]} 69... Kb4
{[%clk 0:00:07.4]} 70. Rc5 {[%clk 0:00:53.4]} 70... Bxc5 {[%clk 0:00:07.3]} 0-1

[Event "Early-Titled-Tuesday-Blitz-February-06-2024"]
[Site "Chess.com"]
[Date "2024.02.06"]
[Round "5"]
[White "iJueles"]
[Black "wadsy27"]
[Result "0-1"]
[WhiteElo "2448"]
[BlackElo "2622"]
[TimeControl "180+1"]
[EndTime "8:57:01 PST"]
[Termination "wadsy27 won by resignation"]

1. c4 {[%clk 0:02:57]} 1... c6 {[%clk 0:02:55.8]} 2. Nf3 {[%clk 0:02:53]} 2...
d5 {[%clk 0:02:50.2]} 3. b3 {[%clk 0:02:52]} 3... Bg4 {[%clk 0:02:46.1]} 4. e3
{[%clk 0:02:49.7]} 4... Nf6 {[%clk 0:02:39]} 5. Be2 {[%clk 0:02:49.3]} 5... e6
{[%clk 0:02:37.8]} 6. Bb2 {[%clk 0:02:49.1]} 6... Nbd7 {[%clk 0:02:38.1]} 7. O-O
{[%clk 0:02:49.1]} 7... Bd6 {[%clk 0:02:35.7]} 8. d4 {[%clk 0:02:49.2]} 8... O-O
{[%clk 0:02:34.5]} 9. Nc3 {[%clk 0:02:48.8]} 9... Qe7 {[%clk 0:02:29.3]} 10. h3
{[%clk 0:02:48.7]} 10... Bh5 {[%clk 0:02:27.6]} 11. Qc2 {[%clk 0:02:41.5]} 11...
a6 {[%clk 0:02:21.1]} 12. Rfd1 {[%clk 0:02:38.8]} 12... b5 {[%clk 0:02:18.8]}
13. Rac1 {[%clk 0:02:33.1]} 13... Bg6 {[%clk 0:01:41.6]} 14. Bd3 {[%clk
0:02:33]} 14... Bxd3 {[%clk 0:01:38.9]} 15. Qxd3 {[%clk 0:02:33.1]} 15... Rfc8
{[%clk 0:01:30.8]} 16. cxd5 {[%clk 0:02:33.5]} 16... cxd5 {[%clk 0:01:29.7]} 17.
Ne2 {[%clk 0:02:23.3]} 17... Ne4 {[%clk 0:01:21.9]} 18. Qb1 {[%clk 0:02:17.1]}
18... Qd8 {[%clk 0:01:00.9]} 19. Rxc8 {[%clk 0:02:15.7]} 19... Rxc8 {[%clk
0:01:01.8]} 20. Rc1 {[%clk 0:02:16.1]} 20... f5 {[%clk 0:00:55.9]} 21. Rxc8
{[%clk 0:02:10]} 21... Qxc8 {[%clk 0:00:56.8]} 22. Qc1 {[%clk 0:02:10.3]} 22...
Qxc1+ {[%clk 0:00:56.6]} 23. Nxc1 {[%clk 0:02:11.2]} 23... Kf7 {[%clk
0:00:52.7]} 24. Nd3 {[%clk 0:02:11.5]} 24... Ke7 {[%clk 0:00:52]} 25. Kf1 {[%clk
0:02:10.6]} 25... g5 {[%clk 0:00:49.5]} 26. Ke2 {[%clk 0:02:09.1]} 26... h5
{[%clk 0:00:48.1]} 27. Nd2 {[%clk 0:02:01.6]} 27... Nxd2 {[%clk 0:00:34.7]} 28.
Kxd2 {[%clk 0:02:01.4]} 28... g4 {[%clk 0:00:35.5]} 29. hxg4 {[%clk 0:01:51.8]}
29... fxg4 {[%clk 0:00:35.6]} 30. g3 {[%clk 0:01:52.2]} 30... Nf6 {[%clk
0:00:33.1]} 31. Ke2 {[%clk 0:01:50.7]} 31... Ne4 {[%clk 0:00:33.2]} 32. Ne1
{[%clk 0:01:50.3]} 32... Kf6 {[%clk 0:00:30]} 33. Ng2 {[%clk 0:01:48.5]} 33...
Kg5 {[%clk 0:00:27.8]} 34. Ne1 {[%clk 0:01:31.2]} 34... Bxg3 {[%clk 0:00:23.8]}
35. fxg3 {[%clk 0:01:28.5]} 35... Nxg3+ {[%clk 0:00:24.7]} 36. Kf2 {[%clk
0:01:27.4]} 36... Ne4+ {[%clk 0:00:24.9]} 37. Kg2 {[%clk 0:01:26.4]} 37... h4
{[%clk 0:00:25.2]} 38. Ba3 {[%clk 0:01:20.2]} 38... h3+ {[%clk 0:00:20.4]} 39.
Kh2 {[%clk 0:01:19]} 39... Nc3 {[%clk 0:00:19.9]} 40. Be7+ {[%clk 0:01:17.6]}
40... Kf5 {[%clk 0:00:20.3]} 41. a3 {[%clk 0:01:07]} 41... Ke4 {[%clk
0:00:20.2]} 42. Bg5 {[%clk 0:01:06.1]} 42... Nb1 {[%clk 0:00:17.5]} 43. Nc2
{[%clk 0:01:02.4]} 43... Kd3 {[%clk 0:00:16.4]} 44. Nb4+ {[%clk 0:01:02.3]}
44... Kc3 {[%clk 0:00:17]} 45. Nxa6 {[%clk 0:01:02.8]} 45... Nxa3 {[%clk
0:00:17.5]} 46. Nc5 {[%clk 0:00:56.5]} 46... Nc2 {[%clk 0:00:16.6]} 47. Bf4
{[%clk 0:00:48.8]} 47... b4 {[%clk 0:00:15.7]} 48. Bd6 {[%clk 0:00:42.4]} 48...
Na1 {[%clk 0:00:15.8]} 49. Na6 {[%clk 0:00:40]} 49... Nxb3 {[%clk 0:00:15.4]}
50. Bxb4+ {[%clk 0:00:39]} 50... Kd3 {[%clk 0:00:15.8]} 51. Nc5+ {[%clk
0:00:32.4]} 51... Kxe3 {[%clk 0:00:15.8]} 52. Nxb3 {[%clk 0:00:32.2]} 52... Kd3
{[%clk 0:00:14]} 53. Bd6 {[%clk 0:00:13.6]} 53... Kc4 {[%clk 0:00:13.6]} 54. Be5
{[%clk 0:00:12.9]} 54... Kxb3 {[%clk 0:00:13.6]} 55. Kg3 {[%clk 0:00:13.5]}
55... Kc4 {[%clk 0:00:13]} 56. Kxg4 {[%clk 0:00:12]} 56... h2 {[%clk 0:00:13.4]}
57. Bxh2 {[%clk 0:00:12.6]} 57... Kxd4 {[%clk 0:00:13.9]} 58. Kf3 {[%clk
0:00:13.2]} 58... Kd3 {[%clk 0:00:14.4]} 59. Kf2 {[%clk 0:00:11.5]} 59... d4
{[%clk 0:00:14]} 60. Ke1 {[%clk 0:00:11]} 60... Kc2 {[%clk 0:00:14]} 61. Bf4
{[%clk 0:00:10.1]} 61... Kd3 {[%clk 0:00:13.9]} 62. Kd1 {[%clk 0:00:10.3]} 62...
Ke4 {[%clk 0:00:13.8]} 63. Bd2 {[%clk 0:00:10.8]} 63... Kd3 {[%clk 0:00:11.8]}
64. Bf4 {[%clk 0:00:10.8]} 64... Ke4 {[%clk 0:00:11.1]} 65. Bd2 {[%clk
0:00:10.9]} 65... e5 {[%clk 0:00:11.6]} 66. Ke2 {[%clk 0:00:11.1]} 66... Kd5
{[%clk 0:00:10.3]} 67. Kd3 {[%clk 0:00:10.4]} 67... e4+ {[%clk 0:00:11]} 68. Ke2
{[%clk 0:00:11]} 68... Kc4 {[%clk 0:00:11.1]} 69. Kd1 {[%clk 0:00:09.3]} 69...
Kd3 {[%clk 0:00:11.2]} 70. Bf4 {[%clk 0:00:09]} 70... e3 {[%clk 0:00:11.3]} 71.
Ke1 {[%clk 0:00:09]} 71... Ke4 {[%clk 0:00:10.9]} 72. Bd6 {[%clk 0:00:08]} 72...
d3 {[%clk 0:00:11.2]} 73. Bb4 {[%clk 0:00:08.7]} 73... Kf3 {[%clk 0:00:11.1]}
74. Ba5 {[%clk 0:00:09.1]} 74... Ke4 {[%clk 0:00:11.1]} 75. Bb4 {[%clk
0:00:09.5]} 75... Kd4 {[%clk 0:00:11.6]} 76. Ba5 {[%clk 0:00:10]} 76... Kc4
{[%clk 0:00:12]} 77. Bb6 {[%clk 0:00:09.2]} 77... d2+ {[%clk 0:00:10.7]} 78. Kd1
{[%clk 0:00:08.4]} 78... Kd3 {[%clk 0:00:11]} 79. Bxe3 {[%clk 0:00:07.2]} 79...
Kxe3 {[%clk 0:00:11.4]} 80. Kc2 {[%clk 0:00:07.3]} 80... Ke2 {[%clk 0:00:11.8]}
81. Kc3 {[%clk 0:00:07.7]} 81... d1=Q {[%clk 0:00:12.3]} 0-1

[Event "Early-Titled-Tuesday-Blitz-February-06-2024"]
[Site "Chess.com"]
[Date "2024.02.06"]
[Round "5"]
[White "SaqoChess_Twitch"]
[Black "KuzubovYuriy"]
[Result "0-1"]
[WhiteElo "2604"]
[BlackElo "2904"]
[TimeControl "180+1"]
[EndTime "8:57:09 PST"]
[Termination "KuzubovYuriy won by resignation"]

1. d4 {[%clk 0:03:00.9]} 1... Nf6 {[%clk 0:02:59.2]} 2. c4 {[%clk 0:03:01.5]}
2... e6 {[%clk 0:02:56.6]} 3. Nc3 {[%clk 0:03:01.7]} 3... Bb4 {[%clk 0:02:56.3]}
4. e3 {[%clk 0:03:02]} 4... d6 {[%clk 0:02:54.8]} 5. a3 {[%clk 0:03:02.1]} 5...
Bxc3+ {[%clk 0:02:54.6]} 6. bxc3 {[%clk 0:03:03]} 6... e5 {[%clk 0:02:54.5]} 7.
Bd3 {[%clk 0:03:02.7]} 7... e4 {[%clk 0:02:49.3]} 8. Bb1 {[%clk 0:03:02.6]} 8...
Bf5 {[%clk 0:02:49.3]} 9. Ne2 {[%clk 0:03:02.3]} 9... Qe7 {[%clk 0:02:47.2]} 10.
Ng3 {[%clk 0:03:02]} 10... Bg6 {[%clk 0:02:47]} 11. O-O {[%clk 0:03:02.3]} 11...
Nbd7 {[%clk 0:02:41.4]} 12. a4 {[%clk 0:02:58]} 12... h5 {[%clk 0:02:40.3]} 13.
h3 {[%clk 0:02:52.8]} 13... h4 {[%clk 0:02:28.6]} 14. Ne2 {[%clk 0:02:52.7]}
14... Bf5 {[%clk 0:02:26.5]} 15. f3 {[%clk 0:02:40.7]} 15... c5 {[%clk
0:02:16.2]} 16. Nf4 {[%clk 0:02:26.1]} 16... Rc8 {[%clk 0:02:07.4]} 17. Nd5
{[%clk 0:02:24.9]} 17... Nxd5 {[%clk 0:02:04.2]} 18. cxd5 {[%clk 0:02:25]} 18...
O-O {[%clk 0:01:38.3]} 19. fxe4 {[%clk 0:02:05.4]} 19... Bxe4 {[%clk 0:01:38.2]}
20. Bxe4 {[%clk 0:02:06.3]} 20... Qxe4 {[%clk 0:01:38.2]} 21. Rf4 {[%clk
0:02:07]} 21... Qxd5 {[%clk 0:01:29.7]} 22. Rxh4 {[%clk 0:02:07.2]} 22... Rfe8
{[%clk 0:01:28.3]} 23. c4 {[%clk 0:01:55.4]} 23... Qf5 {[%clk 0:01:25.8]} 24.
Rf4 {[%clk 0:01:48.9]} 24... Qg6 {[%clk 0:01:13.9]} 25. Ra2 {[%clk 0:01:46.9]}
25... Nf6 {[%clk 0:01:11.4]} 26. Raf2 {[%clk 0:01:36.5]} 26... Ne4 {[%clk
0:01:11.3]} 27. R2f3 {[%clk 0:01:29.8]} 27... Re7 {[%clk 0:01:06.1]} 28. Bb2
{[%clk 0:01:26.5]} 28... f6 {[%clk 0:00:49.4]} 29. Qd3 {[%clk 0:01:19.2]} 29...
Qe8 {[%clk 0:00:40.2]} 30. d5 {[%clk 0:01:13]} 30... Rcc7 {[%clk 0:00:19]} 31.
h4 {[%clk 0:01:12.9]} 31... Qg6 {[%clk 0:00:14.4]} 32. h5 {[%clk 0:01:10]} 32...
Qh7 {[%clk 0:00:13.5]} 33. h6 {[%clk 0:01:04.6]} 33... Ng5 {[%clk 0:00:13.3]}
34. Qxh7+ {[%clk 0:01:00.5]} 34... Kxh7 {[%clk 0:00:12.8]} 35. hxg7 {[%clk
0:00:37.3]} 35... Nxf3+ {[%clk 0:00:12.9]} 36. gxf3 {[%clk 0:00:38.2]} 36...
Rxg7+ {[%clk 0:00:12.9]} 37. Kf2 {[%clk 0:00:39]} 37... Rg6 {[%clk 0:00:12]} 38.
Bxf6 {[%clk 0:00:39.4]} 38... Kg8 {[%clk 0:00:11.6]} 39. Bc3 {[%clk 0:00:35.1]}
39... Rh7 {[%clk 0:00:11.7]} 40. e4 {[%clk 0:00:33.9]} 40... Rh2+ {[%clk
0:00:11.2]} 41. Ke3 {[%clk 0:00:34.4]} 41... Ra2 {[%clk 0:00:11.6]} 42. Rh4
{[%clk 0:00:28]} 42... Rxa4 {[%clk 0:00:10]} 43. Rh8+ {[%clk 0:00:27.1]} 43...
Kf7 {[%clk 0:00:10.3]} 44. Rh7+ {[%clk 0:00:27.6]} 44... Ke8 {[%clk 0:00:11]}
45. Rxb7 {[%clk 0:00:23]} 45... Ra3 {[%clk 0:00:10.2]} 46. Kd3 {[%clk 0:00:19]}
46... Rg3 {[%clk 0:00:10.4]} 47. Rb8+ {[%clk 0:00:19.5]} 47... Kf7 {[%clk
0:00:09.8]} 48. Rb7+ {[%clk 0:00:17.5]} 48... Kg8 {[%clk 0:00:09.6]} 49. Rb8+
{[%clk 0:00:17.5]} 49... Kf7 {[%clk 0:00:09.3]} 50. Rb7+ {[%clk 0:00:17.8]}
50... Ke8 {[%clk 0:00:09.6]} 51. Rb8+ {[%clk 0:00:18.3]} 51... Ke7 {[%clk
0:00:09.9]} 52. Rb7+ {[%clk 0:00:18]} 52... Kd8 {[%clk 0:00:10.2]} 53. Rb8+
{[%clk 0:00:17.4]} 53... Kc7 {[%clk 0:00:10]} 54. Rf8 {[%clk 0:00:18.1]} 54...
a5 {[%clk 0:00:10.7]} 55. Rf7+ {[%clk 0:00:16.7]} 55... Kd8 {[%clk 0:00:11]} 56.
Kd2 {[%clk 0:00:09.3]} 56... Rg2+ {[%clk 0:00:11.1]} 57. Kd3 {[%clk 0:00:09.3]}
57... a4 {[%clk 0:00:11.6]} 58. e5 {[%clk 0:00:08.5]} 58... dxe5 {[%clk
0:00:11.4]} 59. d6 {[%clk 0:00:08.9]} 59... Rb3 {[%clk 0:00:09.8]} 60. Ra7
{[%clk 0:00:06.3]} 60... Rf2 {[%clk 0:00:09.8]} 61. Ke3 {[%clk 0:00:06.3]} 61...
Rc2 {[%clk 0:00:09.9]} 62. Ke4 {[%clk 0:00:06.5]} 62... Rbxc3 {[%clk 0:00:10.2]}
63. Kd5 {[%clk 0:00:07.2]} 63... Rxc4 {[%clk 0:00:09.9]} 64. Kc6 {[%clk
0:00:07.5]} 64... Ke8 {[%clk 0:00:09.5]} 65. d7+ {[%clk 0:00:04.1]} 65... Ke7
{[%clk 0:00:09.6]} 66. Ra8 {[%clk 0:00:04.8]} 66... Rd4 {[%clk 0:00:09.7]} 67.
Re8+ {[%clk 0:00:05.4]} 67... Kf6 {[%clk 0:00:10]} 68. d8=Q+ {[%clk 0:00:06]}
68... Rxd8 {[%clk 0:00:10.4]} 69. Rxd8 {[%clk 0:00:06.9]} 69... a3 {[%clk
0:00:10.9]} 70. Ra8 {[%clk 0:00:07.5]} 70... a2 {[%clk 0:00:11.3]} 71. Kd5
{[%clk 0:00:08.1]} 71... c4 {[%clk 0:00:11.2]} 72. Ke4 {[%clk 0:00:06.1]} 72...
Re2+ {[%clk 0:00:11.4]} 73. Kd5 {[%clk 0:00:06.5]} 73... c3 {[%clk 0:00:12]} 74.
Rf8+ {[%clk 0:00:03.7]} 74... Kg5 {[%clk 0:00:12.3]} 75. Ra8 {[%clk 0:00:04.5]}
75... Kf4 {[%clk 0:00:12.7]} 76. Ra3 {[%clk 0:00:05]} 76... c2 {[%clk
0:00:12.8]} 77. Rxa2 {[%clk 0:00:05]} 77... Rd2+ {[%clk 0:00:13.3]} 78. Ke6
{[%clk 0:00:04.2]} 78... c1=Q {[%clk 0:00:14.2]} 79. Ra4+ {[%clk 0:00:04]} 79...
Rd4 {[%clk 0:00:14.6]} 80. Ra5 {[%clk 0:00:03.6]} 80... Qc6+ {[%clk 0:00:14.6]}
81. Kf7 {[%clk 0:00:03.9]} 81... Rd7+ {[%clk 0:00:15.3]} 0-1

[Event "Early-Titled-Tuesday-Blitz-February-06-2024"]
[Site "Chess.com"]
[Date "2024.02.06"]
[Round "5"]
[White "iwanyu"]
[Black "h4parah5"]
[Result "1/2-1/2"]
[WhiteElo "2793"]
[BlackElo "2929"]
[TimeControl "180+1"]
[EndTime "8:57:11 PST"]
[Termination "Game drawn by repetition"]

1. d4 {[%clk 0:03:00.9]} 1... Nf6 {[%clk 0:02:56.7]} 2. Nf3 {[%clk 0:02:56.3]}
2... e6 {[%clk 0:02:53]} 3. e3 {[%clk 0:02:56.2]} 3... c5 {[%clk 0:02:50.8]} 4.
Bd3 {[%clk 0:02:56]} 4... b6 {[%clk 0:02:49.2]} 5. O-O {[%clk 0:02:55.6]} 5...
Bb7 {[%clk 0:02:49.1]} 6. c4 {[%clk 0:02:55.4]} 6... cxd4 {[%clk 0:02:33.6]} 7.
exd4 {[%clk 0:02:55.6]} 7... d5 {[%clk 0:02:34.2]} 8. cxd5 {[%clk 0:02:47.4]}
8... Nxd5 {[%clk 0:02:31.6]} 9. Nc3 {[%clk 0:02:35]} 9... Nxc3 {[%clk
0:02:28.1]} 10. bxc3 {[%clk 0:02:35.9]} 10... Nd7 {[%clk 0:02:27.6]} 11. Ng5
{[%clk 0:02:30.9]} 11... Qc7 {[%clk 0:02:09.1]} 12. Re1 {[%clk 0:02:23.4]} 12...
Be7 {[%clk 0:01:40.5]} 13. Rxe6 {[%clk 0:02:16]} 13... Nf6 {[%clk 0:00:47.8]}
14. Bb5+ {[%clk 0:02:13.8]} 14... Kf8 {[%clk 0:00:45.8]} 15. Qb3 {[%clk
0:02:10.4]} 15... Bd5 {[%clk 0:00:41.8]} 16. Rxe7 {[%clk 0:01:53]} 16... Qxe7
{[%clk 0:00:40.3]} 17. Ba3 {[%clk 0:01:47.2]} 17... Bxb3 {[%clk 0:00:39.7]} 18.
axb3 {[%clk 0:01:48.1]} 18... Qxa3 {[%clk 0:00:32.4]} 19. Rxa3 {[%clk
0:01:46.6]} 19... a5 {[%clk 0:00:28.8]} 20. Bc4 {[%clk 0:01:30.8]} 20... Ra7
{[%clk 0:00:28.2]} 21. Ra1 {[%clk 0:01:29.4]} 21... h6 {[%clk 0:00:27.8]} 22.
Nf3 {[%clk 0:01:29.2]} 22... Ne4 {[%clk 0:00:27.9]} 23. Re1 {[%clk 0:01:19]}
23... Nxc3 {[%clk 0:00:26.7]} 24. Ne5 {[%clk 0:01:18.7]} 24... g5 {[%clk
0:00:22.6]} 25. Re3 {[%clk 0:00:58.9]} 25... b5 {[%clk 0:00:16.2]} 26. Bxf7
{[%clk 0:00:56.3]} 26... Na2 {[%clk 0:00:13.5]} 27. Be6 {[%clk 0:00:49.4]} 27...
Kg7 {[%clk 0:00:13.1]} 28. Nc6 {[%clk 0:00:46.3]} 28... Ra6 {[%clk 0:00:12.4]}
29. d5 {[%clk 0:00:45.9]} 29... Nb4 {[%clk 0:00:13]} 30. Nxb4 {[%clk 0:00:43.7]}
30... axb4 {[%clk 0:00:13.9]} 31. h4 {[%clk 0:00:44.2]} 31... gxh4 {[%clk
0:00:13.7]} 32. Kh2 {[%clk 0:00:44.3]} 32... Rf8 {[%clk 0:00:13.1]} 33. f3
{[%clk 0:00:43.7]} 33... Ra2 {[%clk 0:00:12.6]} 34. Kh3 {[%clk 0:00:42.9]} 34...
Rd2 {[%clk 0:00:12.4]} 35. Re4 {[%clk 0:00:41]} 35... Kf6 {[%clk 0:00:11.5]} 36.
Rxb4 {[%clk 0:00:38.2]} 36... Rd8 {[%clk 0:00:07]} 37. Rxb5 {[%clk 0:00:36.7]}
37... Ra8 {[%clk 0:00:05.9]} 38. Rb4 {[%clk 0:00:27.9]} 38... Ra1 {[%clk
0:00:06.2]} 39. Rf4+ {[%clk 0:00:26.8]} 39... Ke5 {[%clk 0:00:05.9]} 40. Re4+
{[%clk 0:00:21.4]} 40... Kd6 {[%clk 0:00:06.4]} 41. Rxh4 {[%clk 0:00:18.5]}
41... Rh1+ {[%clk 0:00:06.4]} 42. Kg3 {[%clk 0:00:18.6]} 42... Rxh4 {[%clk
0:00:05.7]} 43. Kxh4 {[%clk 0:00:18.6]} 43... Rxg2 {[%clk 0:00:06.3]} 44. f4
{[%clk 0:00:18.4]} 44... Rb2 {[%clk 0:00:05.7]} 45. f5 {[%clk 0:00:18.6]} 45...
Ke5 {[%clk 0:00:05.6]} 46. Kh5 {[%clk 0:00:18.2]} 46... Rxb3 {[%clk 0:00:05.5]}
47. Kxh6 {[%clk 0:00:18.3]} 47... Kf6 {[%clk 0:00:05.8]} 48. Kh7 {[%clk
0:00:18.4]} 48... Rg3 {[%clk 0:00:05.9]} 49. d6 {[%clk 0:00:17.6]} 49... Rd3
{[%clk 0:00:04.8]} 50. d7 {[%clk 0:00:17.8]} 50... Rd4 {[%clk 0:00:05.1]} 51.
Kg8 {[%clk 0:00:16.9]} 51... Ke7 {[%clk 0:00:05.4]} 52. Kg7 {[%clk 0:00:14.4]}
52... Rg4+ {[%clk 0:00:05.5]} 53. Kh6 {[%clk 0:00:14.3]} 53... Rd4 {[%clk
0:00:05.8]} 54. Kg5 {[%clk 0:00:13.8]} 54... Rd1 {[%clk 0:00:05.5]} 55. Kf4
{[%clk 0:00:12.3]} 55... Rd2 {[%clk 0:00:05.8]} 56. Ke5 {[%clk 0:00:12.1]} 56...
Re2+ {[%clk 0:00:05.8]} 57. Kf4 {[%clk 0:00:12]} 57... Rd2 {[%clk 0:00:06.3]}
58. Ke5 {[%clk 0:00:10.9]} 58... Re2+ {[%clk 0:00:06.4]} 59. Kd5 {[%clk
0:00:10.2]} 59... Rd2+ {[%clk 0:00:06.4]} 60. Kc6 {[%clk 0:00:10.6]} 60... Rd1
{[%clk 0:00:05.9]} 61. Kb7 {[%clk 0:00:10.4]} 61... Rb1+ {[%clk 0:00:05.7]} 62.
Ka6 {[%clk 0:00:09.9]} 62... Ra1+ {[%clk 0:00:05.9]} 63. Kb6 {[%clk 0:00:10.2]}
63... Rb1+ {[%clk 0:00:06.1]} 64. Kc7 {[%clk 0:00:09.9]} 64... Rc1+ {[%clk
0:00:05.4]} 65. Kb6 {[%clk 0:00:10.3]} 65... Rb1+ {[%clk 0:00:05.7]} 66. Kc5
{[%clk 0:00:09.8]} 66... Rc1+ {[%clk 0:00:06]} 67. Kb4 {[%clk 0:00:09.8]} 67...
Rb1+ {[%clk 0:00:06.2]} 68. Kc3 {[%clk 0:00:10]} 68... Rd1 {[%clk 0:00:06.2]}
69. Kc2 {[%clk 0:00:09.9]} 69... Rd4 {[%clk 0:00:06.2]} 70. Kc3 {[%clk
0:00:08.8]} 70... Rd1 {[%clk 0:00:06]} 71. Kc4 {[%clk 0:00:08.9]} 71... Rd2
{[%clk 0:00:05.9]} 72. Kb5 {[%clk 0:00:08.6]} 72... Rd1 {[%clk 0:00:05.9]} 73.
Kc5 {[%clk 0:00:08.4]} 73... Rc1+ {[%clk 0:00:05.9]} 74. Kd4 {[%clk 0:00:09]}
74... Rd1+ {[%clk 0:00:06.3]} 75. Ke5 {[%clk 0:00:09.5]} 75... Re1+ {[%clk
0:00:06.7]} 76. Kf4 {[%clk 0:00:09.8]} 76... Rf1+ {[%clk 0:00:07.1]} 77. Kg5
{[%clk 0:00:09.9]} 77... Rd1 {[%clk 0:00:07.5]} 78. Kh6 {[%clk 0:00:07.5]} 78...
Rh1+ {[%clk 0:00:05.7]} 79. Kg7 {[%clk 0:00:07.6]} 79... Rg1+ {[%clk 0:00:06.2]}
80. Kh6 {[%clk 0:00:07.2]} 80... Rh1+ {[%clk 0:00:06.8]} 81. Kg5 {[%clk
0:00:07.2]} 81... Rg1+ {[%clk 0:00:07.4]} 82. Kh6 {[%clk 0:00:07.7]} 82... Rh1+
{[%clk 0:00:07]} 1/2-1/2